fUST/lending_fUST_20240907
["ID","MTS","AMOUNT","RATE_DAILY","PERIOD"]
[337441838,1725671974700,-153.0,0.00073485,120]
[337441839,1725671974726,-153.0,0.00073485,120]
[337441840,1725671974751,-153.0,0.00073485,120]
[337441841,1725671974782,-153.0,0.00073485,120]
[337441842,1725671974808,-153.0,0.00073485,120]
[337441843,1725671974843,-153.0,0.00073485,120]
[337441844,1725671974868,-153.0,0.00073485,120]
[337441845,1725671974893,-153.0,0.00073485,120]
[337441846,1725671974918,-153.0,0.00073485,120]
[337441847,1725671974942,-153.0,0.00073485,120]
[337441848,1725672003089,141.72551839,0.00075,2]
[337441853,1725672194973,153.0,0.00042469,2]
[337441854,1725672195068,275.6543402,0.00042469,2]
[337441857,1725672246884,3233.05009172,0.0005,2]
[337441859,1725672285278,-160.680735,0.00020986,2]
[337441870,1725672337128,-1377.65863257,0.0003539,2]
[337441884,1725672432104,-208.70578077,0.00035213,26]
[337441885,1725672432127,-390.29136743,0.000353,2]
[337441886,1725672432152,-183.3456598,0.00042472,2]
[337441887,1725672432176,-153.0,0.00042472,2]
[337441888,1725672432197,-33.42722578,0.00049986,120]
[337441889,1725672433112,-127.25350922,0.00049986,120]
[337441890,1725672433133,-1130.0,0.000656,120]
[337441891,1725672433159,-152.0,0.00065753,120]
[337441892,1725672433182,-195.525694,0.00068493,120]
[337441893,1725672433207,-168.359741,0.00069874,2]
[337441894,1725672433229,-500.0,0.00073485,120]
[337441895,1725672433254,-94.59271974,0.00075599,120]
[337441896,1725672445106,-153.0,0.00042472,2]
[337441897,1725672445128,-153.0,0.00042472,2]
[337441898,1725672445150,-75.95561773,0.00042472,2]
[337441899,1725672451095,-77.04438227,0.00042472,2]
[337441900,1725672451120,-153.0,0.00042472,2]
[337441901,1725672451143,-153.0,0.00042472,2]
[337441902,1725672451165,-153.0,0.00042472,2]
[337441903,1725672451193,-153.0,0.00042472,2]
[337441904,1725672451217,-92.4643829,0.00042472,2]
[337441905,1725672452138,-60.5356171,0.00042472,2]
[337441906,1725672452159,-89.92797465,0.00042472,2]
[337441907,1725672454099,-63.07202535,0.00042472,2]
[337441908,1725672454123,-205.40728026,0.00075599,120]
[337441909,1725672454147,-1000.0,0.000756,120]
[337441910,1725672454171,-431.57066,0.00075703,120]
[337441911,1725672454194,-160.680735,0.00078986,120]
[337441912,1725672454218,-431.57066,0.00079308,120]
[337441913,1725672454241,-259.725,0.00081574,120]
[337441914,1725672454265,-431.57066,0.00082913,120]
[337441915,1725672454288,-500.0,0.00083485,120]
[337441916,1725672454312,-431.57066,0.00086518,120]
[337441917,1725672454335,-1000.0,0.00089,120]
[337441918,1725672454359,-431.57066,0.00090123,120]
[337441919,1725672454386,-259.725,0.00091049,120]
[337441920,1725672454411,-1000.0,0.00092,120]
[337441921,1725672454437,-500.0,0.00093485,120]
[337441922,1725672454461,-431.57066,0.00093727,120]
[337441923,1725672454484,-2000.0,0.000945,120]
[337441924,1725672454506,-4278.29774433,0.000949,120]
[337441925,1725672487597,1980.02984933,0.00035394,30]
[337441930,1725672515530,490.86240149,0.00035394,7]
[337441931,1725672523360,1485.11884374,0.00035394,30]
[337441932,1725672525595,4509.13759851,0.00035394,3]
[337441934,1725672556088,-638.61389414,0.0005,120]
[337441935,1725672556111,-849.0,0.000935,120]
[337441936,1725672556134,-6196.50162471,0.000949,120]
[337441938,1725672626202,274.32,0.00081432,2]
[337441992,1725672638264,-459.68142588,0.00035394,3]
[337441993,1725672638276,-1075.46654578,0.00035394,2]
[337441994,1725672638372,-16.71817686,0.00035394,2]
[337441995,1725672638385,-176.09527636,0.00035394,2]
[337441996,1725672638395,-5000.0,0.00035394,3]
[337441997,1725672638405,-11274.98637071,0.000949,120]
[337441998,1725672639122,215.9296171,0.00053935,2]
[337442025,1725672640203,-5147.87198977,0.000949,120]
[337442654,1725672646260,-423.9738852,0.000949,120]
[337442664,1725672646350,-263.081296,0.000949,120]
[337442668,1725672646442,852.40745288,0.000488,120]
[337442681,1725672646549,616.381,0.00031754,30]
[337442772,1725672647414,1734.42284193,0.000488,120]
[337444053,1725672660509,3214.33269739,0.000805,120]
[337448453,1725672947651,-161.104927,0.00020986,2]
[337448459,1725672964746,600.54702456,0.000175,2]
[337448460,1725673029154,-5000.0,0.00035418,3]
[337448478,1725673542158,-161.104927,0.00020986,2]
[337448479,1725673542181,-506.09768128,0.00032104,7]
[337448480,1725673542206,-468.36009565,0.00033294,2]
[337448481,1725673542232,-161.104927,0.00033875,2]
[337448482,1725673542256,-158.19731048,0.000345,120]
[337448483,1725673542278,-310.0,0.00042499,30]
[337448484,1725673542304,-410.1493314,0.000425,2]
[337448485,1725673542327,-410.1493314,0.000425,2]
[337448486,1725673542348,-13.14720066,0.000425,2]
[337448487,1725673545107,-267.96826148,0.000425,2]
[337448490,1725673627127,-161.104927,0.00046764,120]
[337448491,1725673627149,-87.4851789,0.00054599,2]
[337448492,1725673630101,-169.2778325,0.00054599,2]
[337448493,1725673630124,-398.7461986,0.00054794,120]
[337448495,1725673707073,-13.79644173,0.00054794,120]
[337448496,1725673707099,-217.808746,0.00054916,30]
[337448497,1725673707124,-380.0,0.00056084,120]
[337448498,1725673707148,-170.914526,0.00056357,2]
[337448499,1725673707173,-364.497,0.00057303,111]
[337448500,1725673707200,-250.0,0.00057463,2]
[337448501,1725673707233,-250.0,0.00057621,2]
[337448502,1725673707268,-250.0,0.00057779,2]
[337448503,1725673707294,-200.6436413,0.00057881,120]
[337448504,1725673707321,-359.7677256,0.00057883,2]
[337448505,1725673707349,-250.0,0.00057936,2]
[337448506,1725673707375,-250.0,0.00058094,2]
[337448507,1725673707402,-250.0,0.00058251,2]
[337448508,1725673707435,-250.0,0.00058409,2]
[337448509,1725673707464,-250.0,0.00058567,2]
[337448510,1725673707490,-250.0,0.00058724,2]
[337448511,1725673707515,-250.0,0.00058882,2]
[337448512,1725673707543,-250.0,0.00059039,2]
[337448513,1725673707571,-250.0,0.00059197,2]
[337448514,1725673707596,-250.0,0.00059355,2]
[337448515,1725673707623,-42.57191937,0.00059512,2]
[337448516,1725673708163,-207.42808063,0.00059512,2]
[337448517,1725673708188,-161.104927,0.00059653,120]
[337448518,1725673708215,-250.0,0.0005967,2]
[337448519,1725673708240,-250.0,0.00059827,2]
[337448520,1725673708268,-250.0,0.00059985,2]
[337448521,1725673708295,-250.0,0.00060143,2]
[337448522,1725673708321,-250.0,0.000603,2]
[337448523,1725673708346,-250.0,0.00060458,2]
[337448524,1725673708372,-152.0,0.00065753,120]
[337448525,1725673708397,-268.359624,0.00068493,120]
[337448526,1725673708421,-167.340938,0.00068493,120]
[337448527,1725673708447,-1000.0,0.0007,20]
[337448528,1725673708472,-364.497,0.00070477,120]
[337448529,1725673708498,-268.359624,0.00072098,120]
[337448530,1725673708523,-161.104927,0.00072542,120]
[337448531,1725673708549,-206.48089146,0.00073799,30]
[337448532,1725673708573,-153.0,0.000738,120]
[337448533,1725673708599,-153.0,0.00073809,120]
[337448534,1725673708624,-153.0,0.00073809,120]
[337448535,1725673708764,-84.32398791,0.00073809,120]
[337448536,1725673709080,-68.67601209,0.00073809,120]
[337448537,1725673709109,-153.0,0.00073809,120]
[337448538,1725673709136,-153.0,0.00073809,120]
[337448539,1725673709163,-153.0,0.00073809,120]
[337448540,1725673709188,-153.0,0.00073809,120]
[337448541,1725673709213,-153.0,0.00073809,120]
[337448542,1725673709240,-153.0,0.00073809,120]
[337448543,1725673709271,-153.0,0.00073809,120]
[337448544,1725673709296,-153.0,0.00073809,120]
[337448545,1725673709322,-153.0,0.00073809,120]
[337448546,1725673709348,-153.0,0.00073809,120]
[337448547,1725673709388,-153.0,0.00073809,120]
[337448548,1725673709421,-153.0,0.00073809,120]
[337448549,1725673709456,-167.340938,0.00074201,120]
[337448550,1725673712186,581.51,0.0005,60]
[337448562,1725673723839,5000.0,0.00072,120]
[337448563,1725673723865,5000.0,0.00072,120]
[337448566,1725673734139,-5000.0,0.00072,120]
[337448567,1725673754133,-6.54,0.00072,120]
[337448568,1725673754158,-268.359624,0.00075703,120]
[337448569,1725673754180,-6403.32,0.000788,30]
[337448570,1725673754205,-268.359624,0.00079308,120]
[337448571,1725673754225,-2424.43636328,0.0007969,61]
[337448572,1725673754246,-428.98438872,0.0007969,120]
[337448573,1725673759130,-5822.84206983,0.000796,120]
[337448574,1725673766132,-1000.0,0.00075,120]
[337448575,1725673766161,-6407.34889612,0.000796,120]
[337448578,1725673774116,-214.687699,0.00068493,120]
[337448579,1725673774141,-214.687699,0.00072098,120]
[337448580,1725673774166,-214.687699,0.00075703,120]
[337448581,1725673774192,-214.687699,0.00079308,120]
[337448582,1725673774220,-98069.37280641,0.000796,120]
[337448583,1725673774250,-27106.15769231,0.0007968,61]
[337448584,1725673774276,-1212.21818164,0.0007968,61]
[337448585,1725673774305,-330306.1751587,0.0007968,120]
[337448848,1725673834936,-169.685151,0.00053768,2]
[337448850,1725673834949,-169.685151,0.00054118,2]
[337448852,1725673834960,-5.53222855,0.00054468,2]
[337448872,1725673835139,-164.15292245,0.00054468,2]
[337448874,1725673835149,-169.685151,0.00054818,2]
[337448876,1725673835158,-146.92557005,0.00055169,2]
[337449203,1725673838406,-22.75958095,0.00055169,2]
[337449205,1725673838415,-169.685151,0.00055519,2]
[337449219,1725673838524,-169.685151,0.00055869,2]
[337449222,1725673838559,-169.685151,0.00056219,2]
[337449224,1725673838568,-169.685151,0.00056569,2]
[337449226,1725673838577,-4000.0,0.000699,120]
[337449228,1725673838586,-463.15,0.0007489,30]
[337449230,1725673838595,-1320.85,0.0007489,3]
[337449232,1725673838604,-606.10909082,0.000749,61]
[337449234,1725673838614,-9359.4723713,0.000749,120]
[337449598,1725673843411,-955.0,0.0007489,3]
[337449600,1725673843424,-145.71,0.0007489,3]
[337449602,1725673843434,-850.02641816,0.000749,120]
[337450519,1725673869158,3127.99780945,0.00035407,2]
[337450521,1725674113346,-160.74039,0.00020986,2]
[337450523,1725674201174,406.0,0.00027,120]
[337450524,1725674226468,-350.0,0.00031718,2]
[337450525,1725674226496,-24650.0,0.00031719,2]
[337450526,1725674228388,-250.0,0.00031719,2]
[337450527,1725674228415,-3000.0,0.0003182,2]
[337450528,1725674228444,-5214.464543,0.00032883,2]
[337450529,1725674228471,-2997.55997229,0.00035206,2]
[337450530,1725674228505,-2617.1751224,0.00035307,2]
[337450531,1725674228532,-8667.03,0.00035388,3]
[337450532,1725674228562,-2253.77036231,0.00035397,4]
[337450538,1725674590343,2517.71,0.00027,120]
[337450540,1725674707404,1148.0,0.00035391,30]
[337450541,1725674755135,-168.8322633,0.00032244,2]
[337450542,1725674755160,-90.99881719,0.00032397,2]
[337450545,1725674826119,-250.13519445,0.00032319,2]
[337450546,1725674827159,-4080.72154695,0.00032319,2]
[337450547,1725674827185,-103.55753781,0.00032397,2]
[337450548,1725674827212,-214.884164,0.00032496,2]
[337450549,1725674827238,-214.884164,0.00032585,2]
[337450550,1725674827264,-214.884164,0.00032675,2]
[337450551,1725674827291,-214.884164,0.00032764,2]
[337450552,1725674827320,-214.884164,0.00032853,2]
[337450553,1725674827346,-214.884164,0.00032942,2]
[337450554,1725674827372,-214.884164,0.00033031,2]
[337450555,1725674827399,-214.884164,0.0003312,2]
[337450556,1725674827428,-214.884164,0.00033209,2]
[337450557,1725674827453,-214.884164,0.00033298,2]
[337450558,1725674827477,-214.884164,0.00033388,2]
[337450559,1725674827624,-214.884164,0.00033477,2]
[337450560,1725674827650,-214.884164,0.00033566,2]
[337450561,1725674827672,-45.44735964,0.00033655,2]
[337450562,1725674844106,-169.43680436,0.00033655,2]
[337450563,1725674844129,-10.56319564,0.00033744,2]
[337450564,1725674849106,-204.32096836,0.00033744,2]
[337450565,1725674849129,-214.884164,0.00033833,2]
[337450566,1725674849152,-28.60917352,0.00033922,2]
[337450569,1725674964110,-194.5563559,0.00032763,2]
[337450570,1725674964135,-166.185496,0.00033041,2]
[337450571,1725674964158,-166.185496,0.00033472,2]
[337450572,1725674964184,-166.185496,0.00033902,2]
[337450573,1725674964207,-166.185496,0.00034332,2]
[337450574,1725674964231,-166.185496,0.00034763,2]
[337450575,1725674964253,-738.147,0.00035307,41]
[337450576,1725674964276,-2093.74009792,0.00035307,2]
[337450577,1725674964298,-16527.44,0.00035377,3]
[337450578,1725674964320,-13772.87,0.00035377,3]
[337450579,1725674964342,-11477.39,0.00035377,3]
[337450580,1725674964363,-9564.49,0.00035377,3]
[337450581,1725674964386,-17556.6019441,0.00035377,4]
[337450582,1725674964410,-11177.7671532,0.00035377,4]
[337450583,1725674964433,-43891.5048603,0.00035388,4]
[337450584,1725674964455,-27944.4178831,0.00035388,4]
[337450585,1725674964476,-5000.0,0.00035392,30]
[337450586,1725674964498,-26334.9029162,0.00035397,4]
[337450587,1725674964521,-16766.6507298,0.00035397,4]
[337450588,1725674964544,-522.19550761,0.00035406,7]
[337450589,1725674964568,-550.88628044,0.00035406,7]
[337450590,1725674964590,-6872.00219055,0.00035407,2]
[337450591,1725674964611,-10000.0,0.00035407,2]
[337450592,1725674964634,-10000.0,0.00035407,2]
[337450593,1725674964659,-10000.0,0.00035407,2]
[337450594,1725674964682,-10000.0,0.00035407,2]
[337450595,1725674964705,-10000.0,0.00035407,2]
[337450596,1725674964730,-10000.0,0.00035407,2]
[337450597,1725674964753,-10000.0,0.00035407,2]
[337450598,1725674964776,-10000.0,0.00035407,2]
[337450599,1725674964797,-10000.0,0.00035407,2]
[337450600,1725674964819,-10000.0,0.00035407,2]
[337450601,1725674964841,-10000.0,0.00035407,2]
[337450602,1725674964863,-192.195209,0.00035616,120]
[337450603,1725674964890,-192.195209,0.00044521,120]
[337450604,1725674964913,-2093.7400979,0.00046198,2]
[337450605,1725674964936,-500.0,0.0005,120]
[337450606,1725674964958,-192.195209,0.00053425,120]
[337450607,1725674964980,-738.148,0.0005398,101]
[337450608,1725674965001,-860.62273375,0.00054674,2]
[337450609,1725674965025,-17556.6019441,0.00054764,6]
[337450610,1725674965048,-11177.7671532,0.00054764,6]
[337450611,1725674965071,-8778.30097207,0.00054773,6]
[337450612,1725674965094,-5588.88357661,0.00054773,6]
[337450613,1725674965115,-214.739156,0.00054774,120]
[337450614,1725674965138,-961.894585,0.00054774,120]
[337450615,1725674965161,-214.739156,0.00054774,120]
[337450616,1725674965183,-961.894585,0.00054774,120]
[337450617,1725674965204,-151.0,0.00054774,120]
[337450618,1725674965226,-409.357503,0.00054774,120]
[337450619,1725674965247,-409.357503,0.00054774,120]
[337450620,1725674965268,-151.0,0.00054774,120]
[337450621,1725674965290,-228.90402,0.00054774,120]
[337450622,1725674965314,-151.0,0.00054774,120]
[337450623,1725674965337,-1200.997584,0.00054774,120]
[337450624,1725674965358,-1200.997584,0.00054774,120]
[337450625,1725674965381,-1394.431659,0.00054774,120]
[337450626,1725674965403,-1394.431659,0.00054774,120]
[337450627,1725674965425,-2859.717668,0.00054774,90]
[337450628,1725674965448,-151.0,0.00054774,120]
[337450629,1725674965471,-2859.717668,0.00054774,90]
[337450630,1725674965493,-256.832796,0.00054774,120]
[337450631,1725674965514,-256.832796,0.00054774,120]
[337450632,1725674965536,-151.0,0.00054774,120]
[337450633,1725674965557,-210.152838,0.00054774,120]
[337450634,1725674965577,-210.152838,0.00054774,120]
[337450635,1725674965598,-151.0,0.00054774,120]
[337450636,1725674965619,-151.0,0.00054774,120]
[337450637,1725674965643,-151.0,0.00054774,120]
[337450638,1725674965665,-815.3846,0.00054774,120]
[337450639,1725674965686,-151.0,0.00054774,120]
[337450640,1725674965708,-151.0,0.00054774,120]
[337450641,1725674965730,-815.3846,0.00054774,120]
[337450642,1725674965752,-737.8339013,0.00054783,120]
[337450643,1725674965774,-43891.5048603,0.00054784,6]
[337450644,1725674965796,-27944.4178831,0.00054784,6]
[337450645,1725674965817,-303.05454541,0.00054794,61]
[337450646,1725674965953,-500.0,0.00054794,120]
[337450647,1725674965975,-567.67367555,0.00054794,120]
[337450648,1725674965996,-500.0,0.00054794,120]
[337450649,1725674966017,-500.0,0.00054794,120]
[337450650,1725674966036,-500.0,0.00054794,120]
[337450651,1725674966056,-500.0,0.00054794,120]
[337450652,1725674966076,-500.0,0.00054794,120]
[337450653,1725674966096,-500.0,0.00054794,120]
[337450654,1725674966117,-500.0,0.00054794,120]
[337450655,1725674966140,-508.83048644,0.00054794,120]
[337450656,1725674966163,-533.12924915,0.00054794,120]
[337450657,1725674966183,-482.18537527,0.00054794,120]
[337450658,1725674966205,-431.94934583,0.00054794,120]
[337450659,1725674966225,-499.99683721,0.00054794,120]
[337450660,1725674966246,-500.0,0.00054794,120]
[337450661,1725674966266,-500.0,0.00054794,120]
[337450662,1725674966286,-506.83150146,0.00054794,120]
[337450663,1725674966307,-508.92198265,0.00054794,120]
[337450664,1725674966328,-509.19538587,0.00054794,120]
[337450665,1725674966348,-500.0,0.00054794,120]
[337450666,1725674966368,-503.18937416,0.00054794,120]
[337450667,1725674966389,-500.0,0.00054794,120]
[337450668,1725674966411,-507.13952615,0.00054794,120]
[337450669,1725674966431,-547.80979551,0.00054794,120]
[337450670,1725674966455,-533.59808464,0.00054794,120]
[337450671,1725674966475,-500.0,0.00054794,120]
[337450672,1725674966497,-505.43626089,0.00054794,120]
[337450673,1725674966519,-500.0,0.00054794,120]
[337450674,1725674966539,-509.27959865,0.00054794,120]
[337450675,1725674966561,-621.82,0.00054794,120]
[337450676,1725674966582,-621.82,0.00054794,120]
[337450677,1725674966605,-621.82,0.00054794,120]
[337450678,1725674966625,-621.82,0.00054794,120]
[337450679,1725674966649,-621.82,0.00054794,120]
[337450680,1725674966671,-513.60373407,0.00054794,120]
[337450681,1725674966693,-621.82,0.00054794,120]
[337450682,1725674966715,-500.0,0.00054794,120]
[337450683,1725674966737,-503.42399333,0.00054794,120]
[337450684,1725674966758,-509.13151209,0.00054794,120]
[337450685,1725674966780,-506.1740678,0.00054794,120]
[337450686,1725674966800,-151.0,0.00054794,120]
[337450687,1725674966822,-524.80894121,0.00054794,120]
[337450688,1725674966842,-500.0,0.00054794,120]
[337450689,1725674966863,-500.0,0.00054794,120]
[337450690,1725674966884,-500.0,0.00054794,120]
[337450691,1725674966905,-504.6319534,0.00054794,120]
[337450692,1725674966926,-500.0,0.00054794,120]
[337450693,1725674966948,-629.0503208,0.00054794,120]
[337450694,1725674966970,-500.0,0.00054794,120]
[337450695,1725674966990,-505.64346459,0.00054794,120]
[337450696,1725674967012,-503.47384224,0.00054794,120]
[337450697,1725674967033,-152.944526,0.00054794,120]
[337450698,1725674967054,-500.0,0.00054794,120]
[337450699,1725674967075,-510.02249865,0.00054794,120]
[337450700,1725674967097,-500.0,0.00054794,120]
[337450701,1725674967118,-505.74336621,0.00054794,120]
[337450702,1725674967144,-500.0,0.00054794,120]
[337450703,1725674967165,-581.90110337,0.00054794,120]
[337450704,1725674967185,-500.0,0.00054794,120]
[337450705,1725674967206,-505.17203658,0.00054794,120]
[337450706,1725674967231,-505.491945,0.00054794,120]
[337450707,1725674967251,-505.01344244,0.00054794,120]
[337450708,1725674967273,-502.31577555,0.00054794,120]
[337450709,1725674967295,-505.491945,0.00054794,120]
[337450710,1725674967315,-500.0,0.00054794,120]
[337450711,1725674967336,-509.96752493,0.00054794,120]
[337450712,1725674967358,-156.136292,0.00054794,120]
[337450713,1725674967378,-156.136292,0.00054794,120]
[337450714,1725674967400,-503.33226166,0.00054794,120]
[337450715,1725674967422,-502.08746993,0.00054794,7]
[337450716,1725674967443,-504.69787098,0.00054794,120]
[337450717,1725674967463,-500.0,0.00054794,120]
[337450718,1725674967484,-416.14058797,0.00054794,120]
[337450719,1725674967505,-500.0,0.00054794,120]
[337450720,1725674967526,-503.69824945,0.00054794,120]
[337450721,1725674967547,-151.0,0.00054794,30]
[337450722,1725674967568,-500.0,0.00054794,120]
[337450723,1725674967591,-504.69240304,0.00054794,120]
[337450724,1725674967612,-500.0,0.00054794,120]
[337450725,1725674967634,-500.0,0.00054794,120]
[337450726,1725674967658,-500.0,0.00054794,120]
[337450727,1725674967678,-473.54371941,0.00054794,120]
[337450728,1725674967699,-588.00984201,0.00054794,120]
[337450729,1725674967721,-500.0,0.00054794,120]
[337450730,1725674967741,-504.30335494,0.00054794,120]
[337450731,1725674967761,-504.03164067,0.00054794,120]
[337450732,1725674967782,-500.0,0.00054794,120]
[337450733,1725674967803,-500.0,0.00054794,120]
[337450734,1725674967823,-519.89718022,0.00054794,120]
[337450735,1725674967845,-500.0,0.00054794,120]
[337450736,1725674967866,-500.0,0.00054794,120]
[337450737,1725674967886,-512.05021489,0.00054794,120]
[337450738,1725674967906,-151.0,0.00054794,120]
[337450739,1725674967926,-500.0,0.00054794,120]
[337450740,1725674967947,-500.0,0.00054794,120]
[337450741,1725674967969,-525.7748134,0.00054794,120]
[337450742,1725674967992,-503.15948272,0.00054794,120]
[337450743,1725674968013,-500.0,0.00054794,120]
[337450744,1725674968035,-500.0,0.00054794,120]
[337450745,1725674968056,-513.41883575,0.00054794,120]
[337450746,1725674968078,-500.0,0.00054794,120]
[337450747,1725674968099,-500.0,0.00054794,120]
[337450748,1725674968198,-249.223129,0.00054794,120]
[337450749,1725674968223,-500.0,0.00054794,120]
[337450750,1725674968244,-519.71193941,0.00054794,120]
[337450751,1725674968264,-500.0,0.00054794,120]
[337450752,1725674968285,-500.0,0.00054794,120]
[337450753,1725674968305,-500.0,0.00054794,120]
[337450754,1725674968325,-295.3127094,0.00054794,120]
[337450755,1725674968347,-497.45026976,0.00054794,120]
[337450756,1725674968367,-504.40690673,0.00054794,120]
[337450757,1725674968388,-500.0,0.00054794,120]
[337450758,1725674968412,-151.0,0.00054794,120]
[337450759,1725674968435,-500.0,0.00054794,120]
[337450760,1725674968457,-507.20785149,0.00054794,120]
[337450761,1725674968477,-513.14360329,0.00054794,120]
[337450762,1725674968498,-502.6238922,0.00054794,120]
[337450763,1725674968517,-500.0,0.00054794,120]
[337450764,1725674968537,-500.0,0.00054794,120]
[337450765,1725674968557,-500.0,0.00054794,120]
[337450766,1725674968577,-500.0,0.00054794,120]
[337450767,1725674968597,-500.0,0.00054794,120]
[337450768,1725674968617,-501.63986437,0.00054794,120]
[337450769,1725674968638,-151.0,0.00054794,120]
[337450770,1725674968661,-506.14992663,0.00054794,120]
[337450771,1725674968682,-315.839881,0.00054794,120]
[337450772,1725674968705,-500.0,0.00054794,120]
[337450773,1725674968728,-500.0,0.00054794,120]
[337450774,1725674968751,-506.26280082,0.00054794,120]
[337450775,1725674968770,-315.839881,0.00054794,120]
[337450776,1725674968791,-151.0,0.00054794,120]
[337450777,1725674968812,-500.0,0.00054794,120]
[337450778,1725674968833,-500.0,0.00054794,120]
[337450779,1725674968854,-398.362295,0.00054794,120]
[337450780,1725674968876,-500.0,0.00054794,120]
[337450781,1725674968896,-151.0,0.00054794,120]
[337450782,1725674968918,-534.50979725,0.00054794,120]
[337450783,1725674968943,-500.0,0.00054794,120]
[337450784,1725674968964,-509.78033342,0.00054794,120]
[337450785,1725674968984,-515.55805953,0.00054794,120]
[337450786,1725674969005,-398.362295,0.00054794,120]
[337450787,1725674969026,-500.0,0.00054794,120]
[337450788,1725674969047,-500.0,0.00054794,120]
[337450789,1725674969067,-507.34617458,0.00054794,120]
[337450790,1725674969088,-151.0,0.00054794,120]
[337450791,1725674969109,-500.0,0.00054794,120]
[337450792,1725674969129,-516.5591999,0.00054794,120]
[337450793,1725674969150,-151.0,0.00054794,120]
[337450794,1725674969171,-500.0,0.00054794,120]
[337450795,1725674969191,-500.0,0.00054794,120]
[337450796,1725674969212,-421.41347534,0.00054794,120]
[337450797,1725674969232,-500.0,0.00054794,120]
[337450798,1725674969252,-505.84095082,0.00054794,120]
[337450799,1725674969273,-500.0,0.00054794,120]
[337450800,1725674969294,-395.26585896,0.00054794,120]
[337450801,1725674969315,-500.0,0.00054794,120]
[337450802,1725674969335,-314.95337674,0.00054794,120]
[337450803,1725674969355,-500.0,0.00054794,120]
[337450804,1725674969375,-500.0,0.00054794,120]
[337450805,1725674969395,-519.67922079,0.00054794,120]
[337450806,1725674969416,-500.0,0.00054794,120]
[337450807,1725674969436,-500.0,0.00054794,120]
[337450808,1725674969456,-500.0,0.00054794,120]
[337450809,1725674969476,-503.73209031,0.00054794,120]
[337450810,1725674969497,-500.0,0.00054794,120]
[337450811,1725674969517,-500.0,0.00054794,120]
[337450812,1725674969537,-500.0,0.00054794,120]
[337450813,1725674969558,-157.5308645,0.00054794,120]
[337450814,1725674969578,-1007.51,0.00054794,120]
[337450815,1725674969598,-1007.51,0.00054794,120]
[337450816,1725674969619,-1007.51,0.00054794,120]
[337450817,1725674969641,-1007.51,0.00054794,120]
[337450818,1725674969662,-1007.51,0.00054794,120]
[337450819,1725674969684,-1007.51,0.00054794,120]
[337450820,1725674969706,-500.0,0.00054794,120]
[337450821,1725674969729,-500.0,0.00054794,120]
[337450822,1725674969751,-506.44612024,0.00054794,120]
[337450823,1725674969773,-214.739156,0.00054794,120]
[337450824,1725674969795,-214.739156,0.00054794,120]
[337450825,1725674969816,-611.312361,0.00054794,120]
[337450826,1725674969837,-505.83783957,0.00054794,120]
[337450827,1725674969859,-508.43648621,0.00054794,120]
[337450828,1725674969881,-961.894585,0.00054794,120]
[337450829,1725674969903,-961.894585,0.00054794,120]
[337450830,1725674969925,-214.739156,0.00054794,120]
[337450831,1725674969947,-214.739156,0.00054794,120]
[337450832,1725674969968,-500.0,0.00054794,120]
[337450833,1725674969990,-217.01865798,0.00054794,120]
[337450834,1725674970012,-500.0,0.00054794,120]
[337450835,1725674970034,-508.77626107,0.00054794,120]
[337450836,1725674970056,-611.312361,0.00054794,120]
[337450837,1725674970077,-961.894585,0.00054794,120]
[337450838,1725674970099,-500.0,0.00054794,120]
[337450839,1725674970122,-961.894585,0.00054794,120]